[Event "AI Cup Div-3 2023"]
[Site "Online"]
[Date "2023.09.26"]
[Round "4.2"]
[White "Sevian, Samuel"]
[Black "Alekseev, Evgeny"]
[Result "0-1"]
[Annotator "TA"]
[ECO "D03"]
[WhiteElo "2698"]
[BlackElo "2573"]
[PlyCount "132"]
[EventDate "2023.09.18"]
[EventType "k.o."]
[EventCountry "NET"]
[SourceTitle "playchess.com"]
[Source "ChessBase"]
[SourceQuality "1"]
[TimeControl "900+3"]

{[%evp 16,132,35,31,43,48,59,60,63,54,54,54,54,56,75,54,54,54,62,59,56,48,46,55,64,45,67,65,68,60,68,25,37,0,0,0,0,0,0,-17,-19,-20,-15,-8,-8,-19,-15,-77,-83,-439,-439,-439,-439,-439,-431,-424,-424,-439,-416,-438,-424,-478,-468,-472,-463,-447,-424,-471,-424,-409,-409,-409,-408,-727,-409,-977,-932,-1008,-1001,-1002,-687,-655,0,-1001,-999,-993,-440,-984,-984,-959,-947,-947,-854,-793,-750,-944,-918,-979,-979,-956,-915,-850,-802,-29952,-29954,-29956,-29953,-12764,-8804,-8729,-6291,-6203,-5840,-2385,-1813,-7116,-6346,-6697,-6127]} 1. Nf3 {[%emt 0:00:03]} c5 {[%emt 0:00:07]} 2. c3 {[%emt 0:00:12]} Nf6 {[%emt 0:00:10]} 3. d4 {[%emt 0:00:01]} e6 {[%emt 0:00:18]} 4. Bg5 {[%emt 0:00:03]} d5 {[%emt 0:00:13]} 5. e3 {[%emt 0:00:03]} Nc6 {[%emt 0:00:12]} 6. Nbd2 {[%emt 0:00:02]} h6 {[%emt 0:01:31]} 7. Bh4 {[%emt 0:00:05]} Bd6 {[%emt 0:00:27]} 8. Bd3 {[%emt 0:00:25]} O-O {[%emt 0:00:41]} 9. O-O {[%emt 0:00:10]} e5 {[%emt 0:00:17] D03: 1 d4 d5 2 Nf3 Nf6 3 Bg5, including Torre Attack with early ...d5.} 10. e4 {[%emt 0:01:02]} Be6 {[%emt 0:03:19][%cal Rc5d4]} 11. Bxf6 {[%emt 0:06:58]} Qxf6 {[%emt 0:00:11] White is slightly better.} 12. exd5 {[%emt 0:00:00]} Bxd5 {[%emt 0:00:09][%cal Re5d4]} 13. Be4 {[%emt 0:00:01]} Bxe4 {[%emt 0:00:49]} 14. Nxe4 {[%emt 0:00:00]} Qg6 {[%emt 0:00:20]} 15. Nxd6 {[%emt 0:00:02]} (15. dxc5 {looks sharper.} Be7 16. Qd5 Rad8 17. Qc4) 15... Qxd6 {[%emt 0:00:04]} 16. dxe5 {[%emt 0:00:01]} Qe6 {[%emt 0:00:07]} 17. Re1 {[%emt 0:00:01][%cal Bf1e1,Be1e3,Be3e4][%mdl 32]} Rad8 {[%emt 0:00:08] [#]} 18. Qb3 $146 {[%emt 0:00:00]} ({Predecessor:} 18. Qa4 Rd5 19. Qf4 Re8 20. c4 Rd7 21. b3 Nb4 22. Re2 b6 23. h3 Red8 24. Qe4 {½-½ Salimova,N (2379)-Cyfka,K (2339) Wroclaw Radzikowska POL-ROW 2022 (2.1)}) 18... Qxb3 {[%emt 0:00:29]} 19. axb3 {[%emt 0:00:00]} Rfe8 {[%emt 0:00:21]} 20. Re3 {[%emt 0:00:32]} Kf8 {[%emt 0:00:17]} 21. h4 {[%emt 0:00:03]} b6 {[%emt 0:00:33]} 22. g3 {[%emt 0:00:51]} Rd7 {[%emt 0:00:13]} 23. Re4 {[%emt 0:01:16]} f6 {[%emt 0:00:49][%cal Rc6e5]} 24. e6 {[%emt 0:02:06]} Rde7 {[%emt 0:00:12]} 25. b4 {[%emt 0:00:01]} cxb4 {[%emt 0:02:08]} 26. cxb4 {[%emt 0:00:02]} Rxe6 {[%emt 0:00:04]} 27. Rxe6 {[%emt 0:00:01]} Rxe6 $11 {[%emt 0:00:01][%mdl 4096] Endgame KRN-KRN} 28. b5 {[%emt 0:00:00]} Ne5 {[%emt 0:00:02]} 29. Nd4 {[%emt 0:00:01]} Rd6 {[%emt 0:00:02]} 30. Nf5 {[%emt 0:00:04]} Rd5 {[%emt 0:00:43]} 31. Kg2 {[%emt 0:00:01] Prevents Nf3.} (31. Ne3 $1 $11 {remains equal.} Rxb5 32. Rxa7) 31... Ng4 $17 {[%emt 0:00:17] Black continues to play with concentration.} ({Reject} 31... Rxb5 32. Rxa7 Rxb2 33. Nxg7 $14 (33. Rxg7 Nd3 $17)) 32. Kf3 $2 {[%emt 0:00:37][%mdl 8192] [#]} (32. f3 $17 {is more resistant.} Rxf5 33. fxg4 Rxb5 34. Rxa7) 32... Nh2+ $1 $19 {[%emt 0:00:12]} ({Weaker is} 32... Rxf5+ 33. Kxg4 g6 34. f4 $15) 33. Kg2 {[%emt 0:00:27] Ne3 would be deadly.} Rxf5 {[%emt 0:00:01]} 34. Kxh2 {[%emt 0:00:01]} Rxf2+ {[%emt 0:00:01] KR-KR} ({And not} 34... Rxb5 35. Rxa7 Rxb2 36. Kg2 $15) 35. Kh3 {[%emt 0:00:00]} Rxb2 {[%emt 0:00:02]} 36. Rxa7 {[%emt 0:00:02]} Rxb5 {[%emt 0:00:09]} 37. Kg4 {[%emt 0:00:00]} h5+ {[%emt 0:00:15]} 38. Kf4 {[%emt 0:00:01]} Kg8 {[%emt 0:00:02]} 39. Rb7 {[%emt 0:00:10]} Kh7 {[%emt 0:00:01]} 40. Kf3 {[%emt 0:00:02]} Kg6 {[%emt 0:00:02]} 41. Kf4 {[%emt 0:00:00]} Rf5+ {[%emt 0:00:17]} 42. Ke4 {[%emt 0:00:04]} Re5+ {[%emt 0:00:03]} 43. Kf4 {[%emt 0:00:01]} b5 {[%emt 0:00:09][%cal Bb6b5,Bb5b4][%mdl 32]} 44. Rb6 {[%emt 0:00:04]} (44. Kf3 $142) 44... Rc5 {[%emt 0:00:02] [#] Hoping for ...Rc4+.} 45. Rb7 {[%emt 0:00:02]} (45. Rb8 $142) 45... Rc4+ {[%emt 0:00:04]} 46. Ke3 {[%emt 0:00:01]} b4 {[%emt 0:00:01]} 47. Kf3 {[%emt 0:00:01]} Rc3+ {[%emt 0:00:07]} 48. Kf4 {[%emt 0:00:11]} Rc4+ {[%emt 0:00:01]} (48... b3 $142 49. Rb8 Kf7) 49. Kf3 $1 {[%emt 0:00:01]} Rg4 {[%emt 0:00:15]} 50. Rb5 {[%emt 0:00:03]} Kh6 {[%emt 0:00:02]} (50... f5 $142 51. Re5 Kf6) 51. Rb6 {[%emt 0:00:06]} (51. Rc5 $142 g5 52. hxg5+ Rxg5 53. Rc2) 51... Kh7 {[%emt 0:00:03]} 52. Rb7 {[%emt 0:00:02]} Kg8 {[%emt 0:00:07]} 53. Rb5 {[%emt 0:00:08]} g6 {[%emt 0:00:03]} 54. Rb7 {[%emt 0:00:01]} Kf8 {[%emt 0:00:02]} 55. Kf2 {[%emt 0:00:20]} Ke8 {[%emt 0:00:02]} 56. Kf3 {[%emt 0:00:00]} Kd8 {[%emt 0:00:03]} 57. Rf7 {[%emt 0:00:01]} f5 {[%emt 0:00:03]} 58. Kf2 {[%emt 0:00:09]} Kc8 {[%emt 0:00:02] ( -> ...b3)} 59. Re7 {[%emt 0:00:02]} b3 {[%emt 0:00:07]} 60. Re2 {[%emt 0:00:03]} Kc7 {[%emt 0:00:05]} 61. Rb2 {[%emt 0:00:02]} Rb4 {[%emt 0:00:02] Black is clearly winning.} 62. Ke3 {[%emt 0:00:00]} Kd6 {[%emt 0:00:02]} 63. Kd2 {[%emt 0:00:01]} Kd5 {[%emt 0:00:06] Threatens to win with ...Kc4.} 64. Kc3 {[%emt 0:00:02]} Rb6 {[%emt 0:00:01]} 65. Kd3 {[%emt 0:00:03]} Rb7 {[%emt 0:00:04]} 66. Kc3 {[%emt 0:00:09]} Ke4 {[%emt 0:00:01] Weighted Error Value: White=0.45/Black=0.23 (precise)} 0-1

[Event "AI Cup Div-3 2023"]
[Site "Online"]
[Date "2023.09.26"]
[Round "4.3"]
[White "Mamedov, Rauf"]
[Black "Robson, Ray"]
[Result "1-0"]
[Annotator "TA"]
[ECO "C26"]
[WhiteElo "2640"]
[BlackElo "2699"]
[PlyCount "113"]
[EventDate "2023.09.18"]
[EventType "k.o."]
[EventCountry "NET"]
[SourceTitle "playchess.com"]
[Source "ChessBase"]
[SourceQuality "1"]
[TimeControl "900+3"]

{[%evp 12,113,0,-6,0,-15,-18,-31,-19,-29,-24,-55,-9,-16,-14,-11,-6,-17,0,-2,0,0,41,30,47,41,42,43,97,64,58,34,22,22,57,22,33,19,58,53,109,95,157,7,194,182,539,160,241,29,29,25,26,-39,-23,-95,-81,-80,-80,-56,-59,-184,147,139,121,154,144,82,472,475,453,459,460,445,459,466,653,631,851,830,693,590,875,766,821,758,871,0,786,807,779,761,928,837,768,864,848,831,815,797,29974,29974,29987,29988]} 1. e4 {[%emt 0:00:06]} e5 {[%emt 0:03:18]} 2. Nf3 {[%emt 0:00:04]} Nf6 {[%emt 0:00:15]} 3. d3 {[%emt 0:00:17]} Nc6 {[%emt 0:00:06]} 4. g3 {[%emt 0:00:04]} Bc5 {[%emt 0:00:24]} 5. Bg2 {[%emt 0:00:05]} O-O {[%emt 0:00:04]} 6. O-O {[%emt 0:00:04]} d6 {[%emt 0:00:15]} 7. Nc3 {[%emt 0:00:05]} a5 {[%emt 0:00:09][%cal Ba7a5,Ba5a4][%mdl 32] C26: Vienna Game: 2...Nf6, sidelines .} 8. h3 {[%emt 0:00:30]} h6 {[%emt 0:00:16] [#] 8...a4 injects fresh life into this line.} 9. Nd2 $146 {[%emt 0:00:16]} ({Predecessor:} 9. b3 Be6 10. Bb2 Nd4 11. Rb1 Re8 12. Kh2 c6 13. a4 Nxf3+ 14. Qxf3 Bd4 15. Qe2 {0-1 Vallejo Pons,F (2711)-Matlakov,M (2671) Chess.com Rapid CGC KO 2022 (1.1)}) 9... a4 {[%emt 0:00:13] Black is slightly better.} 10. a3 {[%emt 0:00:10]} Nd4 {[%emt 0:00:20][%cal Bc6d4,Bd4e6,Be6g5][%mdl 32]} 11. Nd5 {[%emt 0:00:36]} c6 {[%emt 0:01:16]} (11... Nxd5 $15 12. exd5 Bd7) 12. Nxf6+ $11 {[%emt 0:00:06]} Qxf6 {[%emt 0:00:04]} 13. c3 {[%emt 0:00:19]} Ne6 {[%emt 0:00:21]} 14. Kh2 {[%emt 0:00:07]} Qe7 {[%emt 0:01:09]} (14... Bxf2 15. Nc4 $16) 15. Nf3 {[%emt 0:00:09]} Ng5 {[%emt 0:01:23]} 16. Nh4 {[%emt 0:00:41]} g6 {[%emt 0:00:07]} 17. Qe1 {[%emt 0:00:10]} Kg7 {[%emt 0:00:33]} 18. f4 {[%emt 0:00:11]} Nh7 {[%emt 0:00:06]} 19. Nf3 {[%emt 0:00:43]} f6 {[%emt 0:00:25]} (19... Ba7 $14) 20. d4 {[%emt 0:00:39]} Bb6 {[%emt 0:00:04]} 21. Be3 {[%emt 0:00:05]} exf4 {[%emt 0:00:16]} 22. Bxf4 {[%emt 0:00:06]} g5 {[%emt 0:00:14]} 23. Be3 {[%emt 0:00:19]} Bd7 {[%emt 0:00:15]} 24. Qd2 {[%emt 0:00:07]} f5 {[%emt 0:00:20]} 25. exf5 {[%emt 0:00:13]} Bxf5 {[%emt 0:00:04]} (25... Rxf5 $14 26. Rae1 Qf7) 26. Rae1 $1 $16 {[%emt 0:00:03][%cal Oe3g5]} Qd7 {[%emt 0:00:06]} (26... Be4 $142) 27. d5 {[%emt 0:00:05]} (27. h4 $16) 27... c5 $2 {[%emt 0:00:08]} (27... Bxe3 $11 28. Qxe3 c5) 28. h4 $18 {[%emt 0:00:13][%cal Rh4g5]} Rh8 $2 {[%emt 0:01:14]} (28... Nf6 {is a better chance.}) 29. Kg1 $2 {[%emt 0:00:34]} (29. hxg5 $18 {is the precise move to win.} Rhf8 30. Nh4) 29... Rae8 {[%emt 0:00:05]} (29... Rhe8 $16 30. hxg5 hxg5 31. Bxg5 (31. Nxg5 Nxg5 32. Bxg5 Rxe1 $18) 31... Kg8) 30. c4 $2 {[%emt 0:00:15]} (30. hxg5 $18 hxg5 31. Bxg5 (31. Nxg5 Nxg5 32. Bxg5 c4+ 33. Rf2 Rxe1+ 34. Qxe1 Qe8 $17) 31... Rxe1 32. Bh6+ (32. Qxe1 $2 Nxg5 33. Nxg5 c4+ 34. Rf2 Re8 $19) (32. Nxe1 Re8 $16) 32... Kf7 33. Qxe1 c4+ 34. Nd4 Bxd4+ 35. cxd4) 30... Bd8 $1 $11 {[%emt 0:00:39]} 31. hxg5 {[%emt 0:03:41]} hxg5 {[%emt 0:00:03]} 32. Qc1 {[%emt 0:00:04]} (32. Bxg5 $11 Nxg5 33. Nxg5 Rxe1 34. Rxe1) 32... Bf6 $15 {[%emt 0:00:11]} 33. Bd2 {[%emt 0:00:04]} (33. Bxg5 $2 Nxg5 34. Nxg5 Rxe1 35. Rxe1 Bd4+ 36. Kf1 Bd3+ 37. Re2 Bxe2+ 38. Kxe2 Qg4+ 39. Nf3 Rf8 $19) (33. Nxg5 $2 Rxe3 34. Qxe3 Bd4 35. Ne6+ Bxe6 36. dxe6 Bxe3+ $19) (33. Rf2 $11) 33... Bd3 $17 {[%emt 0:00:12]} 34. Rf2 {[%emt 0:00:19]} Qg4 {[%emt 0:00:04][%csl LRc4,LRg3]} 35. Bc3 {[%emt 0:00:20] aiming for Rxe8.} Qxg3 {[%emt 0:00:27]} 36. Re3 {[%emt 0:00:46] [#]} (36. Rxe8 $15 Rxe8 37. Nxg5 {[%mdl 64] Decoy}) 36... Bg6 $2 {[%emt 0:00:47] [#]} ({Don't play} 36... Bxc4 37. Ne5 $18) (36... Rxe3 $1 $19 37. Qxe3 Bxc3 38. bxc3 Bg6) 37. Ne5 $1 $36 {[%emt 0:00:29][%mdl 2560] Keeping Black busy. Really sharp!} Qxe3 {[%emt 0:00:09]} 38. Qxe3 {[%emt 0:00:05]} Bxe5 {[%emt 0:00:03] [#]} 39. Qd2 {[%emt 0:00:09]} ({White should try} 39. Bh3 $1 {[%cal Rh3e6] Strongly threatening Be6.} Nf6 40. Be6 (40. Qxg5 Ne4 $17)) 39... Re7 {[%emt 0:00:07][%mdl 8192]} (39... b6 $16 {is more resistant.}) 40. Bxe5+ $18 {[%emt 0:00:06]} Rxe5 {[%emt 0:00:04]} 41. Qa5 {[%emt 0:00:03] Against b6} Re7 {[%emt 0:00:10]} 42. Qb6 {[%emt 0:00:04]} (42. Qxa4 Nf6 43. b4 Ng4 $16) 42... Nf6 {[%emt 0:00:07]} 43. Qxd6 {[%emt 0:00:10]} ({Not} 43. Rxf6 Kxf6 44. Qxd6+ Kf7 45. Qxc5 Re1+ 46. Kf2 Rd1 47. Qc7+ Kf6 48. Qd6+ (48. Qxb7 Rd2+ 49. Kg3 Rd3+ 50. Kf2 Rd2+ 51. Kg1 Rd1+ 52. Kf2 Rd2+ $11) 48... Kg7 49. Qe5+ Kh7 50. Qc7+ Kh6 $18) 43... Rf7 {[%emt 0:00:04]} (43... Re1+ $142 44. Bf1 Nh5 45. Qc7+ Kh6 46. Qxc5 Rd1) 44. Qxc5 {[%emt 0:00:05]} Re8 {[%emt 0:00:06]} 45. Qd4 {[%emt 0:00:05]} Re1+ {[%emt 0:00:04]} 46. Rf1 {[%emt 0:00:03]} Re2 {[%emt 0:00:06]} 47. d6 {[%emt 0:00:05] Bd5 is the strong threat.} Be4 {[%emt 0:00:05]} 48. Rf2 {[%emt 0:00:19]} Re1+ {[%emt 0:00:06]} 49. Rf1 {[%emt 0:00:12]} Re2 {[%emt 0:00:04]} 50. Bf3 {[%emt 0:00:04]} Bxf3 {[%emt 0:00:06]} 51. Rxf3 {[%emt 0:00:04]} Re4 {[%emt 0:00:05]} 52. Qc3 {[%emt 0:00:08][%cal Od6d7] Black must now prevent d7!} Kg6 {[%emt 0:00:04]} 53. Qd3 {[%emt 0:00:06]} Kg7 {[%emt 0:00:04]} 54. c5 {[%emt 0:00:17]} Rg4+ {[%emt 0:00:06]} 55. Kf1 {[%emt 0:00:04]} Rf8 {[%emt 0:00:05]} 56. d7 {[%emt 0:00:05]} Rd8 {[%emt 0:00:04]} 57. Qd6 {[%emt 0:00:05] An exciting game.   Weighted Error Value: White=0.62/Black=0.75} 1-0

[Event "AI Cup Div-3 2023"]
[Site "Online"]
[Date "2023.09.27"]
[Round "5.1"]
[White "Alekseev, Evgeny"]
[Black "Mamedov, Rauf"]
[Result "1/2-1/2"]
[Annotator "ChessBase"]
[ECO "B53"]
[WhiteElo "2573"]
[BlackElo "2640"]
[PlyCount "83"]
[EventDate "2023.09.18"]
[EventType "k.o."]
[EventCountry "NET"]
[SourceTitle "playchess.com"]
[Source "ChessBase"]
[SourceQuality "1"]
[TimeControl "900+3"]

1. e4 {[%emt 0:00:05]} c5 {[%emt 0:00:05]} 2. Nf3 {[%emt 0:00:02]} Nc6 {[%emt 0:00:02]} 3. Bb5 {[%emt 0:00:03]} d6 {[%emt 0:00:01]} 4. d4 {[%emt 0:00:44]} cxd4 {[%emt 0:00:04]} 5. Qxd4 {[%emt 0:00:05]} Bd7 {[%emt 0:00:02]} 6. Qd3 {[%emt 0:00:01]} Nf6 {[%emt 0:00:08]} 7. c4 {[%emt 0:00:03]} g6 {[%emt 0:00:08]} 8. Nc3 {[%emt 0:00:02]} Bg7 {[%emt 0:00:01]} 9. h3 {[%emt 0:00:07]} O-O {[%emt 0:00:01]} 10. O-O {[%emt 0:00:01]} a6 {[%emt 0:00:07]} 11. Bxc6 {[%emt 0:00:02]} Bxc6 {[%emt 0:00:01]} 12. Nd4 {[%emt 0:00:02]} Nd7 {[%emt 0:00:06]} 13. Be3 {[%emt 0:00:05]} Rc8 {[%emt 0:00:25]} 14. Rac1 {[%emt 0:00:08]} Qa5 {[%emt 0:00:40]} 15. b3 {[%emt 0:00:30]} Rfe8 {[%emt 0:00:40]} 16. Qd2 {[%emt 0:02:04]} Nc5 {[%emt 0:00:38]} 17. Rfd1 {[%emt 0:01:00]} Bd7 {[%emt 0:02:22]} 18. f3 {[%emt 0:00:28]} Ne6 {[%emt 0:01:12]} 19. Nd5 {[%emt 0:02:34]} Qxd2 {[%emt 0:00:31]} 20. Rxd2 {[%emt 0:00:02]} Nxd4 {[%emt 0:00:15]} 21. Bxd4 {[%emt 0:00:02]} Be6 {[%emt 0:00:02]} 22. Bxg7 {[%emt 0:00:59]} Kxg7 {[%emt 0:00:03]} 23. Nf4 {[%emt 0:00:37]} Rc6 {[%emt 0:00:30]} 24. Re1 {[%emt 0:00:31]} Rc5 {[%emt 0:00:35]} 25. e5 {[%emt 0:00:26]} dxe5 {[%emt 0:00:14]} 26. Nxe6+ {[%emt 0:00:16]} fxe6 {[%emt 0:00:02]} 27. Kf2 {[%emt 0:01:09]} Kf6 {[%emt 0:00:16]} 28. Re4 {[%emt 0:01:10]} b5 {[%emt 0:00:24]} 29. Ke3 {[%emt 0:00:26]} Rec8 {[%emt 0:00:23]} 30. Rc2 {[%emt 0:00:02]} a5 {[%emt 0:00:57]} 31. Ke2 {[%emt 0:00:09]} g5 {[%emt 0:00:32]} 32. Ke3 {[%emt 0:00:41]} h6 {[%emt 0:00:05]} 33. Ke2 {[%emt 0:00:03]} R5c7 {[%emt 0:00:55]} 34. Ke3 {[%emt 0:00:07]} a4 {[%emt 0:00:30]} 35. Ke2 {[%emt 0:00:53]} axb3 {[%emt 0:00:26]} 36. axb3 {[%emt 0:00:02]} Kf5 {[%emt 0:00:47]} 37. Ke3 {[%emt 0:00:03]} Kf6 {[%emt 0:00:32]} 38. Ke2 {[%emt 0:00:02]} Rc6 {[%emt 0:00:42]} 39. Ke3 {[%emt 0:00:04]} R8c7 {[%emt 0:00:20]} 40. Ke2 {[%emt 0:00:03]} Rc8 {[%emt 0:00:31]} 41. Ke3 {[%emt 0:00:07]} R6c7 {[%emt 0:00:00]} 42. Ke2 {[%emt 0:00:02]} 1/2-1/2

[Event "AI Cup Div-3 2023"]
[Site "Online"]
[Date "2023.09.27"]
[Round "5.2"]
[White "Mamedov, Rauf"]
[Black "Alekseev, Evgeny"]
[Result "1-0"]
[Annotator "ChessBase"]
[ECO "C54"]
[WhiteElo "2640"]
[BlackElo "2573"]
[PlyCount "51"]
[EventDate "2023.09.18"]
[EventType "k.o."]
[EventCountry "NET"]
[SourceTitle "playchess.com"]
[Source "ChessBase"]
[SourceQuality "1"]
[TimeControl "900+3"]

1. e4 {[%emt 0:00:03]} e5 {[%emt 0:00:06]} 2. Nf3 {[%emt 0:00:03]} Nc6 {[%emt 0:00:02]} 3. Bc4 {[%emt 0:00:03]} Bc5 {[%emt 0:00:02]} 4. c3 {[%emt 0:00:08]} Nf6 {[%emt 0:00:04]} 5. d3 {[%emt 0:00:00]} d6 {[%emt 0:00:06]} 6. Nbd2 {[%emt 0:00:02]} O-O {[%emt 0:00:15]} 7. O-O {[%emt 0:00:10]} Bb6 {[%emt 0:00:46]} 8. Bb3 {[%emt 0:00:05]} Ne7 {[%emt 0:00:08]} 9. Re1 {[%emt 0:00:02]} c6 {[%emt 0:00:09]} 10. Nf1 {[%emt 0:00:03]} Ng6 {[%emt 0:00:06]} 11. Ng3 {[%emt 0:00:01]} h6 {[%emt 0:00:22]} 12. h3 {[%emt 0:00:27]} d5 {[%emt 0:00:17]} 13. exd5 {[%emt 0:01:48]} Nxd5 {[%emt 0:00:02]} 14. d4 {[%emt 0:00:04]} exd4 {[%emt 0:00:03]} 15. Nxd4 {[%emt 0:00:01]} Bc7 {[%emt 0:02:07]} 16. Qh5 {[%emt 0:03:38]} Ndf4 {[%emt 0:01:54]} 17. Bxf4 {[%emt 0:00:51]} Nxf4 {[%emt 0:00:02]} 18. Qf3 {[%emt 0:00:02]} Qg5 {[%emt 0:03:57]} 19. Rad1 {[%emt 0:00:32]} h5 {[%emt 0:02:18]} 20. Nde2 {[%emt 0:01:31]} Nxe2+ {[%emt 0:02:00]} 21. Rxe2 {[%emt 0:00:03]} Bxg3 {[%emt 0:00:44]} 22. Bxf7+ {[%emt 0:02:51]} Rxf7 {[%emt 0:00:02]} 23. Re8+ {[%emt 0:00:01]} Kh7 {[%emt 0:00:01]} 24. Qxf7 {[%emt 0:00:01]} Bxh3 {[%emt 0:00:05]} 25. fxg3 {[%emt 0:00:04]} Rxe8 {[%emt 0:00:27]} 26. Qxe8 {[%emt 0:00:01]} 1-0

[Event "AI Cup Div-3 2023"]
[Site "Online"]
[Date "2023.09.29"]
[Round "6.1"]
[White "Mamedov, Rauf"]
[Black "Sevian, Samuel"]
[Result "1/2-1/2"]
[Annotator "TA"]
[ECO "C54"]
[WhiteElo "2640"]
[BlackElo "2698"]
[PlyCount "139"]
[EventDate "2023.09.18"]
[EventType "k.o."]
[EventCountry "NET"]
[SourceTitle "playchess.com"]
[Source "ChessBase"]
[SourceQuality "1"]
[TimeControl "900+3"]

{[%evp 14,139,16,19,16,0,0,0,0,0,0,0,10,-15,0,0,0,-15,7,0,0,0,0,0,0,0,0,0,0,0,0,0,0,0,0,0,0,0,0,0,19,0,0,0,18,-8,0,0,0,0,15,0,0,0,27,14,15,15,15,0,43,43,82,77,88,48,62,13,58,42,50,44,45,41,45,14,14,0,24,20,16,14,33,29,37,24,32,5,5,5,5,0,6,0,0,0,5,7,8,0,31,25,24,0,0,0,96,100,135,0,16,16,23,0,0,0,0,0,0,0,0,0,0,0,0,0,0,0]} 1. e4 {[%emt 0:00:04]} e5 {[%emt 0:00:05]} 2. Nf3 {[%emt 0:00:02]} Nc6 {[%emt 0:00:00]} 3. Bc4 {[%emt 0:00:01]} Bc5 {[%emt 0:00:01]} 4. c3 {[%emt 0:00:02]} Nf6 {[%emt 0:00:01]} 5. d3 {[%emt 0:00:02]} d6 {[%emt 0:00:01]} 6. Nbd2 {[%emt 0:00:02][%cal Bb1d2,Bd2f1,Bf1g3,Bg3e4][%mdl 32]} a6 {[%emt 0:00:02]} 7. Bb3 {[%emt 0:00:02]} O-O {[%emt 0:00:09]} 8. h3 {[%emt 0:00:01]} Re8 {[%emt 0:00:19] C54: Giuoco Piano: 4 c3 Nf6, main lines with 5 d4 and 5 d3.} 9. Nf1 {[%emt 0:00:08]} Be6 {[%emt 0:00:02]} 10. Ng3 {[%emt 0:00:06]} h6 {[%emt 0:00:24] Repels Bg5} 11. Bxe6 {[%emt 0:00:39]} Rxe6 {[%emt 0:00:01]} 12. O-O {[%emt 0:00:12] d4 is the strong threat.} d5 {[%emt 0:00:02] [#]} 13. a4 $146 {[%emt 0:00:46]} ({Predecessor:} 13. Qc2 Qd7 14. Re1 Rd8 15. Be3 Bxe3 16. Rxe3 Ne7 17. exd5 Qxd5 18. Rae1 Ng6 19. c4 {½-½ Becker,M (1950)-Dill,X (2136) Oberliga Baden 1920 2019 (3.4)}) 13... dxe4 {[%emt 0:00:36]} 14. Nxe4 {[%emt 0:01:15]} Ba7 {[%emt 0:00:50]} 15. Re1 {[%emt 0:00:24]} Nd5 {[%emt 0:00:18]} 16. Qb3 {[%emt 0:00:38]} Rb8 {[%emt 0:00:30]} 17. Bd2 {[%emt 0:00:19]} Qd7 {[%emt 0:00:12]} 18. Rad1 {[%emt 0:00:36]} Kh8 {[%emt 0:02:00]} 19. Qc4 {[%emt 0:01:25]} b5 {[%emt 0:00:24]} 20. axb5 {[%emt 0:00:03]} axb5 {[%emt 0:00:00]} 21. Qa2 {[%emt 0:00:07]} b4 {[%emt 0:01:50]} 22. Qa4 {[%emt 0:01:29]} bxc3 {[%emt 0:00:34]} 23. bxc3 {[%emt 0:00:04]} Rd8 {[%emt 0:00:01]} 24. Qc4 {[%emt 0:00:21]} Na5 {[%emt 0:00:45]} 25. Qa2 {[%emt 0:00:08]} Nc6 {[%emt 0:00:01]} 26. Qc4 {[%emt 0:01:02]} f5 {[%emt 0:00:47]} (26... Na5 $5 27. Qa2 $8 Nc6 $11) 27. Nc5 {[%emt 0:00:08]} (27. Ng3 $5 {[%cal Rg3f5]}) 27... Bxc5 {[%emt 0:00:02]} 28. Qxc5 {[%emt 0:00:01]} Rde8 {[%emt 0:00:05]} 29. Bc1 {[%emt 0:00:45]} Qd6 {[%emt 0:01:46]} 30. Qxd6 {[%emt 0:00:12]} cxd6 {[%emt 0:00:01]} 31. Bd2 {[%emt 0:00:05]} e4 {[%emt 0:01:13]} 32. dxe4 {[%emt 0:00:21]} fxe4 {[%emt 0:00:01]} 33. Nh2 {[%emt 0:00:52]} Na5 {[%emt 0:00:48]} 34. Ng4 {[%emt 0:00:45][%cal Od2h6]} Nc4 {[%emt 0:00:13] [#]} 35. Bxh6 $1 {[%emt 0:01:20][%mdl 64] Discovered Attack} Nxc3 {[%emt 0:00:02]} 36. Rd4 {[%emt 0:00:13]} Na3 {[%emt 0:00:28] Excellent horsemanship.} 37. Bd2 {[%emt 0:00:03]} Nab5 {[%emt 0:00:06]} 38. Rc4 {[%emt 0:00:15]} Nd5 {[%emt 0:00:13]} 39. Rec1 {[%emt 0:00:49]} Kh7 {[%emt 0:00:55]} 40. Rd1 {[%emt 0:00:09]} (40. Ra1 $14) 40... Ne7 {[%emt 0:00:29]} (40... Ra8 $5) 41. Rb4 {[%emt 0:00:08]} Nc7 {[%emt 0:00:04]} 42. Rb7 {[%emt 0:00:01]} Ncd5 {[%emt 0:00:11]} 43. Bg5 {[%emt 0:00:13]} Kg6 {[%emt 0:00:02]} 44. Bxe7 {[%emt 0:00:19]} R8xe7 {[%emt 0:00:17]} 45. Rb3 {[%emt 0:00:16]} Nf6 {[%emt 0:00:07]} 46. Ne3 {[%emt 0:00:02]} Rd7 {[%emt 0:00:04]} 47. Rb5 {[%emt 0:00:06]} Kf7 {[%emt 0:00:03][%cal Od6d5]} 48. g4 {[%emt 0:00:05]} Ng8 {[%emt 0:00:09]} 49. Rf5+ {[%emt 0:00:04]} (49. Nc4 $5 {[%cal Rc4e5]} Rd8 50. Ne5+ Kf8 51. Nc6 $16) 49... Ke8 {[%emt 0:00:02]} 50. Ra1 {[%emt 0:00:02]} Ne7 {[%emt 0:00:05]} 51. Ra8+ {[%emt 0:00:16]} Rd8 {[%emt 0:00:00]} 52. Rxd8+ {[%emt 0:00:00]} Kxd8 $11 {[%emt 0:00:01][%mdl 4096] Endgame KRN-KRN} 53. Rf8+ {[%emt 0:00:01]} Kd7 {[%emt 0:00:03]} 54. Rf7 {[%emt 0:00:00]} Ke8 {[%emt 0:00:13]} 55. Rxg7 {[%emt 0:00:04] next Rg5 is good for White.} d5 {[%emt 0:00:00][%cal Bd6d5,Bd5d4,Bd4d3][%mdl 32]} 56. Nc2 {[%emt 0:00:03]} Nc6 {[%emt 0:00:02] Against Nd4} 57. Rg5 {[%emt 0:00:02]} d4 {[%emt 0:00:01]} 58. Rd5 {[%emt 0:00:02]} d3 {[%emt 0:00:01]} 59. Ne3 {[%emt 0:00:01] Black must now prevent Kg2.} Ne7 {[%emt 0:00:07]} (59... Re5 $1 $11 {keeps the balance.}) 60. Rd4 $16 {[%emt 0:00:04]} Nc6 {[%emt 0:00:01] [#]} 61. Rd5 {[%emt 0:00:01]} (61. Ra4 $1 $16) 61... Ne7 $11 {[%emt 0:00:06]} 62. Ra5 {[%emt 0:00:02] Black should prevent Ra4.} Ng6 $1 {[%emt 0:00:04]} 63. f3 {[%emt 0:00:16]} exf3 {[%emt 0:00:04] The position is equal.} 64. Kf2 {[%emt 0:00:01]} Nf4 {[%emt 0:00:05]} 65. Kxf3 {[%emt 0:00:03]} Nxh3 {[%emt 0:00:01]} 66. Rd5 {[%emt 0:00:03]} Ng1+ {[%emt 0:00:01]} 67. Kf2 {[%emt 0:00:01]} Nh3+ {[%emt 0:00:00]} 68. Kf3 {[%emt 0:00:00]} Ng1+ {[%emt 0:00:01]} 69. Kf2 {[%emt 0:00:01]} Nh3+ {[%emt 0:00:00]} 70. Kf3 {[%emt 0:00:00] Weighted Error Value: White=0.08 (flawless) /Black=0.11 (very precise)} 1/2-1/2